fUSD/lending_fUSD_20250417
["ID","MTS","AMOUNT","RATE_DAILY","PERIOD"]
[358279772,1744894252697,-1305.62,0.00172602,120]
[358279773,1744894252707,-500.0,0.00172602,120]
[358279774,1744894252716,-500.0,0.00172602,120]
[358279775,1744894252725,-555.88,0.00172602,120]
[358279776,1744894252735,-673.81,0.00172602,120]
[358279777,1744894252746,-319.06769632,0.00172602,120]
[358279778,1744894252755,-1644.03,0.00172602,120]
[358279779,1744894252765,-500.0,0.00172602,120]
[358279780,1744894252774,-479.46,0.00172602,120]
[358279781,1744894252783,-500.0,0.00172602,120]
[358279782,1744894252793,-500.0,0.00172602,30]
[358279783,1744894252803,-500.0,0.00172602,120]
[358279784,1744894252812,-618.42,0.00172602,120]
[358279785,1744894252822,-500.0,0.00172602,120]
[358279786,1744894252831,-299.60440094,0.00172602,120]
[358279787,1744894252841,-500.0,0.00180821,120]
[358279788,1744894252850,-500.0,0.00180821,120]
[358279789,1744894252859,-500.0,0.00180821,120]
[358279790,1744894252869,-2916.04,0.00180821,120]
[358279791,1744894252879,-500.0,0.00180821,120]
[358279792,1744894252888,-705.82,0.00180821,120]
[358279793,1744894252898,-30613.69,0.00180821,7]
[358279794,1744894252907,-1272.09,0.00180821,120]
[358279795,1744894252917,-500.0,0.00180821,120]
[358279796,1744894252927,-500.0,0.00180821,120]
[358279797,1744894252937,-500.0,0.00180821,120]
[358279798,1744894252946,-505.38,0.00180821,120]
[358279799,1744894252956,-619.23,0.00180821,120]
[358279800,1744894252965,-1305.62,0.00180821,120]
[358279801,1744894252975,-500.0,0.00180821,120]
[358279802,1744894252984,-500.0,0.00180821,120]
[358279803,1744894252993,-555.88,0.00180821,120]
[358279804,1744894253004,-673.81,0.00180821,120]
[358279805,1744894253013,-1644.03,0.00180821,120]
[358279806,1744894253023,-500.0,0.00180821,120]
[358279807,1744894253033,-500.0,0.00180821,120]
[358279808,1744894253042,-500.0,0.00180821,30]
[358279809,1744894253052,-500.0,0.00180821,120]
[358279810,1744894253061,-618.42,0.00180821,120]
[358279811,1744894253070,-500.0,0.00180821,120]
[358279812,1744894253080,-863.54,0.00181,120]
[358279813,1744894253090,-151.0,0.00181507,120]
[358279814,1744894253100,-150.0,0.00189021,120]
[358279815,1744894253110,-500.0,0.00189041,120]
[358279816,1744894253119,-500.0,0.00189041,120]
[358279817,1744894253128,-500.0,0.00189041,120]
[358279818,1744894253137,-2916.04,0.00189041,120]
[358279819,1744894253145,-500.0,0.00189041,120]
[358279820,1744894253154,-705.82,0.00189041,120]
[358279821,1744894253163,-30613.69,0.00189041,7]
[358279822,1744894253172,-1272.09,0.00189041,120]
[358279823,1744894253182,-500.0,0.00189041,120]
[358279824,1744894253192,-500.0,0.00189041,120]
[358279825,1744894253201,-500.0,0.00189041,120]
[358279826,1744894253211,-505.38,0.00189041,120]
[358279827,1744894253220,-619.23,0.00189041,120]
[358279828,1744894253230,-1305.62,0.00189041,120]
[358279829,1744894253239,-500.0,0.00189041,120]
[358279830,1744894253249,-500.0,0.00189041,120]
[358279831,1744894253259,-555.88,0.00189041,120]
[358279832,1744894253269,-673.81,0.00189041,120]
[358279833,1744894253278,-1644.03,0.00189041,120]
[358279834,1744894253287,-500.0,0.00189041,120]
[358279835,1744894253298,-500.0,0.00189041,120]
[358279836,1744894253308,-590.24,0.00189041,30]
[358279837,1744894253317,-500.0,0.00189041,120]
[358279838,1744894253327,-618.42,0.00189041,120]
[358279839,1744894253337,-500.0,0.00189041,120]
[358279840,1744894253347,-500.0,0.00189737,120]
[358279841,1744894253356,-150.0,0.00190876,120]
[358279842,1744894253366,-113283.240487,0.00193324,60]
[358279843,1744894253376,-500.0,0.0019726,120]
[358279844,1744894253385,-500.0,0.0019726,120]
[358279845,1744894253395,-500.0,0.0019726,120]
[358279846,1744894253404,-2916.04,0.0019726,120]
[358279847,1744894253414,-500.0,0.0019726,120]
[358279848,1744894253424,-705.82,0.0019726,120]
[358279849,1744894253434,-30613.69,0.0019726,7]
[358279850,1744894253444,-1272.09,0.0019726,120]
[358279851,1744894253454,-500.0,0.0019726,120]
[358279852,1744894253463,-500.0,0.0019726,120]
[358279853,1744894253473,-500.0,0.0019726,120]
[358279854,1744894253483,-505.38,0.0019726,120]
[358279855,1744894253492,-619.23,0.0019726,120]
[358279856,1744894253502,-1305.62,0.0019726,120]
[358279857,1744894253512,-500.0,0.0019726,120]
[358279858,1744894253521,-500.0,0.0019726,120]
[358279859,1744894253530,-555.88,0.0019726,120]
[358279860,1744894253539,-673.81,0.0019726,120]
[358279861,1744894253547,-1644.03,0.0019726,120]
[358279862,1744894253556,-500.0,0.0019726,120]
[358279863,1744894253564,-500.0,0.0019726,120]
[358279864,1744894253573,-500.0,0.0019726,120]
[358279865,1744894253581,-618.42,0.0019726,120]
[358279866,1744894253590,-500.0,0.0019726,120]
[358279867,1744894253599,-150.0,0.00199,120]
[358279868,1744894253608,-183.41650148,0.001999,120]
[358279869,1744894253618,-13164.5967555,0.00199999,2]
[358279870,1744894253626,-500.0,0.00199999,120]
[358279871,1744894253635,-50000.0,0.002,2]
[358279872,1744894253644,-441.84499989,0.002,30]
[358279873,1744894253653,-1710.73088844,0.002,120]
[358279874,1744894253663,-500.000001,0.002,120]
[358279875,1744894253673,-250.1514,0.00204421,120]
[358279876,1744894253685,-500.0,0.00205479,120]
[358279877,1744894253695,-500.0,0.00205479,120]
[358279878,1744894253704,-500.0,0.00205479,120]
[358279879,1744894253714,-2916.04,0.00205479,120]
[358279880,1744894253723,-500.0,0.00205479,120]
[358279881,1744894253733,-705.82,0.00205479,120]
[358279882,1744894253743,-30613.69,0.00205479,7]
[358279883,1744894253753,-1272.09,0.00205479,120]
[358279884,1744894253763,-500.0,0.00205479,120]
[358279885,1744894253772,-500.0,0.00205479,120]
[358279886,1744894253782,-503.95762625,0.00205479,120]
[358279887,1744894253791,-505.38,0.00205479,120]
[358279888,1744894253801,-619.23,0.00205479,120]
[358279889,1744894253810,-1305.62,0.00205479,120]
[358279890,1744894253819,-500.0,0.00205479,120]
[358279891,1744894253829,-500.0,0.00205479,120]
[358279892,1744894253838,-555.88,0.00205479,120]
[358279893,1744894253848,-673.81,0.00205479,120]
[358279894,1744894253857,-1644.03,0.00205479,120]
[358279895,1744894253866,-500.0,0.00205479,120]
[358279896,1744894253876,-500.0,0.00205479,120]
[358279897,1744894253885,-500.0,0.00205479,120]
[358279898,1744894253894,-618.42,0.00205479,120]
[358279899,1744894253903,-500.0,0.00205479,120]
[358279900,1744894253912,-2000.0,0.00211817,16]
[358279901,1744894253921,-500.0,0.00213698,120]
[358279902,1744894253931,-500.0,0.00213698,120]
[358279903,1744894253940,-500.0,0.00213698,120]
[358279904,1744894253949,-2916.04,0.00213698,120]
[358279905,1744894253958,-500.0,0.00213698,120]
[358279906,1744894253968,-705.82,0.00213698,120]
[358279907,1744894253977,-30613.69,0.00213698,7]
[358279908,1744894253986,-1272.09,0.00213698,120]
[358279909,1744894253995,-500.0,0.00213698,120]
[358279910,1744894254004,-500.0,0.00213698,120]
[358279911,1744894254013,-505.38,0.00213698,120]
[358279912,1744894254023,-619.23,0.00213698,120]
[358279913,1744894254032,-1305.62,0.00213698,120]
[358279914,1744894254041,-500.0,0.00213698,120]
[358279915,1744894254051,-500.0,0.00213698,120]
[358279916,1744894254061,-555.88,0.00213698,120]
[358279917,1744894254070,-673.81,0.00213698,120]
[358279918,1744894254079,-1644.03,0.00213698,120]
[358279919,1744894254088,-500.0,0.00213698,120]
[358279920,1744894254098,-500.0,0.00213698,120]
[358279921,1744894254109,-264.40287344,0.00213698,120]
[358279922,1744894254119,-500.0,0.00213698,120]
[358279923,1744894254128,-618.42,0.00213698,120]
[358279924,1744894254138,-1494.05,0.00214,60]
[358279925,1744894254146,-250.0,0.002191,120]
[358279926,1744894254156,-250.0,0.002191,120]
[358279927,1744894254166,-250.0,0.002191,120]
[358279928,1744894254175,-371.3,0.002191,120]
[358279929,1744894254185,-4825.74938904,0.00220064,15]
[358279930,1744894254194,-500.0,0.00221917,120]
[358279931,1744894254203,-500.0,0.00221917,120]
[358279932,1744894254212,-500.0,0.00221917,120]
[358279933,1744894254222,-2916.04,0.00221917,120]
[358279934,1744894254232,-500.0,0.00221917,120]
[358279935,1744894254241,-705.82,0.00221917,120]
[358279936,1744894254251,-30613.69,0.00221917,7]
[358279937,1744894254261,-1272.09,0.00221917,120]
[358279938,1744894254270,-500.0,0.00221917,120]
[358279939,1744894254280,-505.38,0.00221917,120]
[358279940,1744894254289,-619.23,0.00221917,120]
[358279941,1744894254303,-1305.62,0.00221917,120]
[358279942,1744894254312,-500.0,0.00221917,120]
[358279943,1744894254321,-500.0,0.00221917,120]
[358279944,1744894254331,-555.88,0.00221917,120]
[358279945,1744894254343,-673.81,0.00221917,120]
[358279946,1744894254352,-1644.03,0.00221917,120]
[358279947,1744894254362,-500.0,0.00221917,120]
[358279948,1744894254372,-500.0,0.00221917,120]
[358279949,1744894254382,-500.0,0.00221917,120]
[358279950,1744894254393,-618.42,0.00221917,120]
[358279951,1744894254402,-154.62,0.002246,87]
[358279952,1744894254411,-154.62,0.002246,87]
[358279953,1744894254421,-151.0,0.00227014,120]
[358279954,1744894254431,-524.80659142,0.00230136,120]
[358279955,1744894254440,-500.0,0.00230136,120]
[358279956,1744894254449,-500.0,0.00230136,120]
[358279957,1744894254459,-2916.04,0.00230136,120]
[358279958,1744894254469,-500.0,0.00230136,120]
[358279959,1744894254479,-705.82,0.00230136,120]
[358279960,1744894254489,-30613.69,0.00230136,7]
[358279961,1744894254499,-1272.09,0.00230136,120]
[358279962,1744894254509,-500.0,0.00230136,120]
[358279963,1744894254519,-505.38,0.00230136,120]
[358279964,1744894254529,-619.23,0.00230136,120]
[358279965,1744894254538,-1305.62,0.00230136,120]
[358279966,1744894254548,-384.35844156,0.00230136,120]
[358279967,1744894254557,-500.0,0.00230136,120]
[358279968,1744894254567,-555.88,0.00230136,120]
[358279969,1744894254577,-673.81,0.00230136,120]
[358279970,1744894254675,-1644.03,0.00230136,120]
[358279971,1744894254699,-500.0,0.00230136,120]
[358279972,1744894254709,-500.0,0.00230136,120]
[358279973,1744894254718,-500.0,0.00230136,120]
[358279974,1744894254728,-618.42,0.00230136,120]
[358279975,1744894254736,-500.0,0.00238356,120]
[358279976,1744894254745,-500.0,0.00238356,120]
[358279977,1744894254755,-2916.04,0.00238356,120]
[358279978,1744894254764,-500.0,0.00238356,120]
[358279979,1744894254773,-705.82,0.00238356,120]
[358279980,1744894254782,-30613.69,0.00238356,7]
[358279981,1744894254791,-1272.09,0.00238356,120]
[358279982,1744894254799,-500.0,0.00238356,120]
[358279983,1744894254808,-505.38,0.00238356,120]
[358279984,1744894254817,-619.23,0.00238356,120]
[358279985,1744894254826,-1305.62,0.00238356,120]
[358279986,1744894254835,-520.16351197,0.00238356,120]
[358279987,1744894254845,-555.88,0.00238356,120]
[358279988,1744894254854,-673.81,0.00238356,120]
[358279989,1744894254864,-1644.03,0.00238356,120]
[358279990,1744894254874,-376.9,0.00238356,120]
[358279991,1744894254883,-500.0,0.00238356,120]
[358279992,1744894254893,-569.75,0.00238356,120]
[358279993,1744894254903,-618.42,0.00238356,120]
[358279994,1744894254913,-500.0,0.00246575,120]
[358279995,1744894254923,-500.0,0.00246575,120]
[358279996,1744894254932,-2916.04,0.00246575,120]
[358279997,1744894254942,-500.0,0.00246575,120]
[358279998,1744894254951,-705.82,0.00246575,120]
[358279999,1744894254961,-30613.69,0.00246575,7]
[358280000,1744894254970,-1272.09,0.00246575,120]
[358280001,1744894254980,-500.0,0.00246575,120]
[358280002,1744894254989,-505.38,0.00246575,120]
[358280003,1744894254998,-619.23,0.00246575,120]
[358280004,1744894255008,-1305.62,0.00246575,120]
[358280005,1744894255017,-555.88,0.00246575,120]
[358280006,1744894255027,-673.81,0.00246575,120]
[358280007,1744894255036,-1644.03,0.00246575,120]
[358280008,1744894255046,-500.0,0.00246575,120]
[358280009,1744894255056,-618.42,0.00246575,120]
[358280010,1744894255065,-175.01,0.00249816,2]
[358280011,1744894255074,-2000.0,0.00254,120]
[358280012,1744894255083,-500.0,0.00254794,120]
[358280013,1744894255092,-500.0,0.00254794,120]
[358280014,1744894255102,-2916.04,0.00254794,120]
[358280015,1744894255111,-500.0,0.00254794,120]
[358280016,1744894255121,-705.82,0.00254794,120]
[358280017,1744894255130,-30613.69,0.00254794,7]
[358280018,1744894255139,-1272.09,0.00254794,120]
[358280019,1744894255149,-182.21,0.00254794,120]
[358280020,1744894255159,-619.23,0.00254794,120]
[358280021,1744894255168,-505.38,0.00254794,120]
[358280022,1744894255178,-1305.62,0.00254794,120]
[358280023,1744894255188,-555.88,0.00254794,120]
[358280024,1744894255198,-673.81,0.00254794,120]
[358280025,1744894255207,-1644.03,0.00254794,120]
[358280026,1744894255216,-500.0,0.00254794,120]
[358280027,1744894255226,-618.42,0.00254794,120]
[358280028,1744894255235,-500.0,0.0025618,120]
[358280029,1744894255244,-540.17974243,0.00263013,120]
[358280030,1744894255255,-500.0,0.00263013,120]
[358280031,1744894255265,-2916.04,0.00263013,120]
[358280032,1744894255274,-500.0,0.00263013,120]
[358280033,1744894255283,-705.82,0.00263013,120]
[358280034,1744894255294,-30613.69,0.00263013,7]
[358280035,1744894255306,-1272.09,0.00263013,120]
[358280036,1744894255314,-505.38,0.00263013,120]
[358280037,1744894255324,-1305.62,0.00263013,120]
[358280038,1744894255334,-619.23,0.00263013,120]
[358280039,1744894255344,-555.88,0.00263013,120]
[358280040,1744894255355,-673.81,0.00263013,120]
[358280041,1744894255365,-1644.03,0.00263013,120]
[358280042,1744894255376,-500.0,0.00263013,120]
[358280043,1744894255385,-1494.05,0.00269,60]
[358280044,1744894255395,-500.0,0.0027,120]
[358280045,1744894255404,-613.61,0.00271232,120]
[358280046,1744894255414,-2916.04,0.00271232,120]
[358280047,1744894255423,-500.0,0.00271232,120]
[358280048,1744894255433,-705.82,0.00271232,120]
[358280049,1744894255442,-30613.69,0.00271232,7]
[358280050,1744894255452,-1272.09,0.00271232,120]
[358280051,1744894255461,-505.38,0.00271232,120]
[358280052,1744894255471,-1305.62,0.00271232,120]
[358280053,1744894255480,-619.23,0.00271232,120]
[358280054,1744894255490,-555.88,0.00271232,120]
[358280055,1744894255499,-673.81,0.00271232,120]
[358280056,1744894255509,-1644.03,0.00271232,120]
[358280057,1744894255519,-500.0,0.00271232,120]
[358280058,1744894255528,-151.0,0.00272521,120]
[358280059,1744894255538,-4825.74938904,0.00272612,15]
[358280060,1744894255548,-760.5672,0.00273872,30]
[358280061,1744894255558,-88888.0,0.00273872,120]
[358280062,1744894255567,-861.35194713,0.0027395,120]
[358280063,1744894255577,-500.0,0.00273971,120]
[358280064,1744894255586,-525.38405743,0.00273972,120]
[358280065,1744894255596,-504.65185615,0.00273972,120]
[358280066,1744894255605,-500.0,0.00273972,120]
[358280067,1744894255614,-500.0,0.00273972,120]
[358280068,1744894255624,-500.0,0.00273972,120]
[358280069,1744894255635,-500.0,0.00273972,120]
[358280070,1744894255645,-542.16418912,0.00273972,120]
[358280071,1744894255655,-500.0,0.00273972,120]
[358280072,1744894255664,-500.0,0.00273972,120]
[358280073,1744894255675,-500.0,0.00273972,120]
[358280074,1744894255687,-500.0,0.00273972,120]
[358280075,1744894255696,-500.0,0.00273972,120]
[358280076,1744894255706,-500.0,0.00273972,120]
[358280077,1744894255715,-500.0,0.00273972,120]
[358280078,1744894255724,-500.0,0.00273972,120]
[358280079,1744894255734,-538.08655781,0.00273972,120]
[358280080,1744894255743,-238.67354013,0.00273972,120]
[358280081,1744894255753,-500.0,0.00273972,120]
[358280082,1744894255763,-504.95831916,0.00273972,120]
[358280083,1744894255772,-500.0,0.00273972,120]
[358280084,1744894255782,-500.0,0.00273972,2]
[358280085,1744894255793,-500.0,0.00273972,120]
[358280086,1744894255802,-540.69715187,0.00273972,120]
[358280087,1744894255812,-500.0,0.00273972,120]
[358280088,1744894255821,-500.0,0.00273972,120]
[358280089,1744894255831,-521.76939274,0.00273972,120]
[358280090,1744894255841,-500.0,0.00273972,120]
[358280091,1744894255852,-500.0,0.00273972,120]
[358280092,1744894255861,-505.17720748,0.00273972,120]
[358280093,1744894255871,-500.0,0.00273972,120]
[358280094,1744894255881,-500.0,0.00273972,120]
[358280095,1744894255890,-503.85131081,0.00273972,120]
[358280096,1744894255900,-500.0,0.00273972,120]
[358280097,1744894255911,-517.18638036,0.00273972,60]
[358280098,1744894255921,-500.0,0.00273972,120]
[358280099,1744894255931,-500.0,0.00273972,120]
[358280100,1744894255941,-500.0,0.00273972,120]
[358280101,1744894255950,-1000.0,0.00273972,120]
[358280102,1744894255959,-500.0,0.00273972,120]
[358280103,1744894255968,-500.0,0.00273972,120]
[358280104,1744894255978,-500.0,0.00273972,120]
[358280105,1744894255988,-500.0,0.00273972,120]
[358280106,1744894255999,-500.0,0.00273972,120]
[358280107,1744894256008,-500.0,0.00273972,120]
[358280108,1744894256018,-500.0,0.00273972,120]
[358280109,1744894256028,-500.0,0.00273972,120]
[358280110,1744894256037,-500.0,0.00273972,120]
[358280111,1744894256047,-500.0,0.00273972,120]
[358280112,1744894256057,-500.0,0.00273972,120]
[358280113,1744894256067,-500.0,0.00273972,120]
[358280114,1744894256077,-500.0,0.00273972,120]
[358280115,1744894256087,-500.0,0.00273972,120]
[358280116,1744894256096,-500.0,0.00273972,120]
[358280117,1744894256106,-517.92698829,0.00273972,120]
[358280118,1744894256116,-500.0,0.00273972,120]
[358280119,1744894256126,-500.0,0.00273972,120]
[358280120,1744894256134,-500.0,0.00273972,120]
[358280121,1744894256143,-505.65946452,0.00273972,120]
[358280122,1744894256152,-500.0,0.00273972,120]
[358280123,1744894256161,-500.0,0.00273972,120]
[358280124,1744894256169,-320.68267179,0.00273972,120]
[358280125,1744894256177,-500.0,0.00273972,120]
[358280126,1744894256185,-500.0,0.00273972,120]
[358280127,1744894256193,-500.0,0.00273972,120]
[358280128,1744894256202,-500.0,0.00273972,120]
[358280129,1744894256210,-500.0,0.00273972,120]
[358280130,1744894256218,-509.51922137,0.00273972,120]
[358280131,1744894256227,-500.0,0.00273972,120]
[358280132,1744894256236,-500.0,0.00273972,120]
[358280133,1744894256245,-500.0,0.00273972,120]
[358280134,1744894256255,-442.17917256,0.00273972,120]
[358280135,1744894256265,-500.0,0.00273972,120]
[358280136,1744894256274,-500.0,0.00273972,120]
[358280137,1744894256283,-500.0,0.00273972,120]
[358280138,1744894256293,-500.0,0.00273972,120]
[358280139,1744894256305,-500.0,0.00273972,120]
[358280140,1744894256315,-500.0,0.00273972,120]
[358280141,1744894256323,-500.0,0.00273972,120]
[358280142,1744894256332,-500.0,0.00273972,120]
[358280143,1744894256344,-500.0,0.00273972,120]
[358280144,1744894256354,-500.0,0.00273972,120]
[358280145,1744894256364,-500.0,0.00273972,120]
[358280146,1744894256374,-500.0,0.00273972,120]
[358280147,1744894256385,-504.47976704,0.00273972,120]
[358280148,1744894256396,-500.0,0.00273972,120]
[358280149,1744894256406,-500.0,0.00273972,120]
[358280150,1744894256415,-500.0,0.00273972,120]
[358280151,1744894256424,-500.0,0.00273972,120]
[358280152,1744894256433,-504.38796724,0.00273972,120]
[358280153,1744894256443,-500.0,0.00273972,120]
[358280154,1744894256452,-500.0,0.00273972,120]
[358280155,1744894256462,-500.0,0.00273972,120]
[358280156,1744894256471,-500.0,0.00273972,120]
[358280157,1744894256481,-500.0,0.00273972,120]
[358280158,1744894256490,-500.0,0.00273972,120]
[358280159,1744894256501,-500.0,0.00273972,120]
[358280160,1744894256510,-500.0,0.00273972,120]
[358280161,1744894256520,-500.0,0.00273972,120]
[358280162,1744894256529,-500.0,0.00273972,120]
[358280163,1744894256538,-500.0,0.00273972,120]
[358280164,1744894256549,-500.0,0.00273972,120]
[358280165,1744894256558,-500.0,0.00273972,120]
[358280166,1744894256568,-500.0,0.00273972,120]
[358280167,1744894256578,-500.0,0.00273972,120]
[358280168,1744894256588,-501.6628496,0.00273972,120]
[358280169,1744894256597,-583.95694516,0.00273972,120]
[358280170,1744894256606,-500.0,0.00273972,120]
[358280171,1744894256615,-393.90192302,0.00273972,120]
[358280172,1744894256625,-513.51151106,0.00273972,120]
[358280173,1744894256634,-539.32688674,0.00273972,120]
[358280174,1744894256643,-500.0,0.00273972,120]
[358280175,1744894256653,-500.0,0.00273972,120]
[358280176,1744894256663,-500.0,0.00273972,120]
[358280177,1744894256672,-500.0,0.00273972,120]
[358280178,1744894256682,-500.0,0.00273972,120]
[358280179,1744894256692,-500.0,0.00273972,120]
[358280180,1744894256702,-500.0,0.00273972,120]
[358280181,1744894256711,-500.0,0.00273972,120]
[358280182,1744894256721,-500.0,0.00273972,120]
[358280183,1744894256730,-500.0,0.00273972,120]
[358280184,1744894256740,-500.0,0.00273972,120]
[358280185,1744894256749,-500.0,0.00273972,120]
[358280186,1744894256759,-500.0,0.00273972,120]
[358280187,1744894256769,-500.0,0.00273972,120]
[358280188,1744894256779,-500.0,0.00273972,120]
[358280189,1744894256788,-500.0,0.00273972,120]
[358280190,1744894256798,-500.0,0.00273972,120]
[358280191,1744894256807,-502.00713616,0.00273972,90]
[358280192,1744894256816,-500.0,0.00273972,120]
[358280193,1744894256826,-500.0,0.00273972,120]
[358280194,1744894256835,-500.0,0.00273972,120]
[358280195,1744894256845,-500.0,0.00273972,120]
[358280196,1744894256854,-500.0,0.00273972,120]
[358280197,1744894256864,-500.0,0.00273972,120]
[358280198,1744894256873,-500.0,0.00273972,120]
[358280199,1744894256883,-500.0,0.00273972,120]
[358280200,1744894256892,-500.0,0.00273972,120]
[358280201,1744894256902,-500.0,0.00273972,120]
[358280202,1744894256911,-500.0,0.00273972,120]
[358280203,1744894256920,-500.0,0.00273972,120]
[358280204,1744894256930,-500.0,0.00273972,120]
[358280205,1744894256939,-500.0,0.00273972,120]
[358280206,1744894256949,-586.34,0.00273972,120]
[358280207,1744894256958,-500.0,0.00273972,120]
[358280208,1744894256967,-577.8255696,0.00273972,120]
[358280209,1744894256976,-500.0,0.00273972,120]
[358280210,1744894256985,-2000.0,0.00273972,120]
[358280211,1744894256995,-506.0250882,0.00273972,120]
[358280212,1744894257006,-500.0,0.00273972,120]
[358280213,1744894257015,-516.02421195,0.00273972,120]
[358280214,1744894257024,-500.0,0.00273972,120]
[358280215,1744894257034,-500.0,0.00273972,120]
[358280216,1744894257043,-500.0,0.00273972,120]
[358280217,1744894257052,-176.9034772,0.00273972,120]
[358280218,1744894257062,-500.0,0.00273972,120]
[358280219,1744894257071,-500.0,0.00273972,120]
[358280220,1744894257080,-511.61376736,0.00273972,120]
[358280221,1744894257091,-568.13,0.00273972,120]
[358280222,1744894257101,-500.0,0.00273972,120]
[358280223,1744894257201,-500.0,0.00273972,120]
[358280224,1744894257211,-500.0,0.00273972,120]
[358280225,1744894257222,-500.0,0.00273972,120]
[358280226,1744894257235,-500.0,0.00273972,120]
[358280227,1744894257245,-500.0,0.00273972,120]
[358280228,1744894257256,-500.0,0.00273972,120]
[358280229,1744894257265,-500.0,0.00273972,120]
[358280230,1744894257275,-500.0,0.00273972,30]
[358280231,1744894257284,-596.02058482,0.00273972,120]
[358280232,1744894257295,-500.0,0.00273972,120]
[358280233,1744894257306,-522.6,0.00273972,120]
[358280234,1744894257314,-500.0,0.00273972,120]
[358280235,1744894257323,-500.0,0.00273972,120]
[358280236,1744894257333,-500.0,0.00273972,120]
[358280237,1744894257343,-500.0,0.00273972,120]
[358280238,1744894257352,-500.0,0.00273972,120]
[358280239,1744894257361,-500.0,0.00273972,120]
[358280240,1744894257374,-635.12,0.00273972,120]
[358280241,1744894257387,-500.0,0.00273972,120]
[358280242,1744894257396,-500.0,0.00273972,120]
[358280243,1744894257405,-500.0,0.00273972,120]
[358280244,1744894257415,-500.0,0.00273972,120]
[358280245,1744894257424,-513.58780085,0.00273972,120]
[358280246,1744894257434,-500.0,0.00273972,120]
[358280247,1744894257443,-500.0,0.00273972,120]
[358280248,1744894257453,-500.0,0.00273972,120]
[358280249,1744894257462,-500.0,0.00273972,120]
[358280250,1744894257471,-500.0,0.00273972,120]
[358280251,1744894257480,-952.0,0.00273972,120]
[358280252,1744894257490,-500.0,0.00273972,120]
[358280253,1744894257499,-500.0,0.00273972,120]
[358280254,1744894257509,-499.40560064,0.00273972,120]
[358280255,1744894257519,-581.36,0.00273972,120]
[358280256,1744894257529,-500.0,0.00273972,120]
[358280257,1744894257539,-500.0,0.00273972,120]
[358280258,1744894257549,-500.0,0.00273972,120]
[358280259,1744894257558,-500.0,0.00273972,120]
[358280260,1744894257567,-500.0,0.00273972,120]
[358280261,1744894257577,-500.0,0.00273972,120]
[358280262,1744894257586,-500.0,0.00273972,120]
[358280263,1744894257595,-561.67699844,0.00273972,120]
[358280264,1744894257605,-500.0,0.00273972,120]
[358280265,1744894257614,-500.0,0.00273972,120]
[358280266,1744894257623,-500.0,0.00273972,120]
[358280267,1744894257632,-500.0,0.00273972,120]
[358280268,1744894257642,-500.0,0.00273972,120]
[358280269,1744894257651,-531.21188002,0.00273972,120]
[358280270,1744894257660,-500.0,0.00273972,120]
[358280271,1744894257670,-198.36534634,0.00273972,120]